Cogmind - Beta 9.6 @@@ ROGUE MODE // 2020.05.14 @ 09:17:48 Player: Vectis Result: Destroyed by G-34 Mercenary with Small Laser Performance ------------- Evolutions (0) 0 Regions Visited (1) 200 Robots Destroyed (6) 30 Value Destroyed (106) 106 Prototype IDs (0) 0 Alien Tech Used (0) 0 Bonus (0) 0 TOTAL SCORE: 336 Bonus ------- None Cogmind --------- Core Integrity 0/250 Matter 290/300 Energy 83/100 System Corruption 2% Temperature Cool (7) Movement Hovering (60) Location -10/Materials Parts ------- > --- POWER (1) -------- (None) > --- PROPULSION (2) --- Hover Unit > --- UTILITY (2) ------ Small Storage Unit > --- WEAPON (2) ------- (None) > --- INVENTORY (6) ---- Light Ion Engine Improved Ion Engine Light Treads Small Storage Unit Peak State ------------ > --- POWER ------------ Improved Ion Engine > --- PROPULSION ------- Aluminum Leg Aluminum Leg > --- UTILITY ---------- Small Storage Unit Improved Sensor Array > --- WEAPON ----------- EM Pulse Gun Assault Rifle > --- INVENTORY -------- Light Ion Engine Light Ion Engine Light Treads Light Treads Small Laser [Rating: 9] Favorites ----------- Power Improved Ion Engine Engine Improved Ion Engine Propulsion Aluminum Leg Leg Aluminum Leg Hover Unit Hover Unit Utility Small Storage Unit Device Improved Sensor Array Storage Small Storage Unit Weapon Assault Rifle Energy Gun EM Pulse Gun Ballistic Gun Assault Rifle Build | -11 -10 ------- Run | Scr Mat Slots Evolved . | . . Power . | . . Propulsion . | . . Utility . | . . Weapon . | . . Parts Attached 16 | 8 8 Power 2 | 1 1 Engine 2 | 1 1 Core . | . . Reactor . | . . Propulsion 5 | 2 3 Treads . | . . Leg 4 | 2 2 Wheel . | . . Hover 1 | . 1 Flight . | . . Utility 3 | 2 1 Device 2 | 1 1 Storage 1 | 1 . Processor . | . . Hackware . | . . Protection . | . . Artifact . | . . Weapon 6 | 3 3 Energy Gun 5 | 2 3 Energy Cannon . | . . Ballistic Gun 1 | 1 . Ballistic Cannon . | . . Launcher . | . . Special Weapon . | . . Impact Weapon . | . . Slashing Weapon . | . . Piercing Weapon . | . . Special Melee Weapon . | . . Unidentified Prototypes . | . . Parts Lost 11 | . 11 Power 1 | . 1 Propulsion 4 | . 4 Utility 1 | . 1 Weapon 5 | . 5 Highest Loss Streak 11 | . 11 Average Slot Usage (%) 90 | . 90 Engine 12 | . 12 Leg 26 | . 26 Device 11 | . 11 Storage 14 | . 14 Energy Gun 11 | . 11 Ballistic Gun 11 | . 11 Naked Turns . | . . Heaviest Build 16 | 12 16 Greatest Support 20 | 20 20 Greatest Overweight (x) 1 | . 1 Average Overweight (x) . | . . Largest Inventory Capacity 6 | 6 6 Average Capacity 5 | 5 6 Most Carried 6 | 4 6 Average Carried 4 | 2 5 Final Capacity 6 | 6 6 Final Carried 4 | 4 4 Class Distribution -------------------- 100% | Mutant Dominant Class ---------------- Mutant | -10/Materials Resources | -11 -10 ----------- Run | Scr Mat Matter Collected 325 | 295 30 Remotely . | . . Salvage Created 288 | 154 134 Parts 16 | 10 6 Haulers Intercepted . | . . Recyclers Shooed . | . . Parts Field Recycled . | . . Retrieved Matter . | . . Parts Self-Destructed . | . . Prevented . | . . Kills | -11 -10 ------- Run | Scr Mat Combat Hostiles Destroyed 2 | . 2 Guns 2 | . 2 Classes Destroyed 4 | 2 2 Builder 1 | . 1 Tunneler 2 | 2 . Recycler 1 | 1 . Grunt 2 | . 2 Best Kill Streak 3 | 3 3 Combat Bots Only 1 | . 1 Max Kills in Single Turn 1 | 1 1 Gunslinging . | . . Exploded . | . . Melee . | . . Uniques/NPCs Destroyed . | . . Combat | -11 -10 -------- Run | Scr Mat Damage Taken 1034 | . 1034 Core 252 | . 252 Absorbed by Shields . | . . Core Remaining (%) 100 | 100 . Volleys Fired 20 | 5 15 Largest 2 | 2 2 Hottest 60 | 60 60 Shots Fired 39 | 10 29 Gun 39 | 10 29 Cannon . | . . Launcher . | . . Special . | . . Kinetic 19 | 5 14 Thermal 8 | . 8 Explosive . | . . Electromagnetic 12 | 5 7 Robot Hit Streak 11 | 6 11 Robot Miss Streak 3 | 1 3 Penetration Max . | . . Secondary Targets 1 | . 1 Max Gunslinging Chain 1 | . 1 Shots Hit Robots 24 | 7 17 Core Hits 17 | 4 13 Critical Hits . | . . Critical Kills . | . . Critical Parts Destroyed . | . . Melee Attacks . | . . Impact . | . . Slashing . | . . Piercing . | . . Sneak Attacks . | . . Combat Hostiles . | . . Follow-up Attacks . | . . Damage Inflicted 331 | 111 220 Guns 285 | 78 207 Cannons . | . . Explosions 33 | 33 . Melee . | . . Ramming 13 | . 13 Kinetic 106 | 11 95 Thermal 88 | 33 55 Explosive . | . . Electromagnetic 124 | 67 57 Impact . | . . Slashing . | . . Piercing . | . . Highest Corruption 2 | . 2 Average Corruption 2 | . 2 Corruption Purged . | . . Overload Shots . | . . Overflow Damage . | . . Projectiles . | . . Explosions . | . . Melee . | . . Knockbacks 1 | . 1 Impact 1 | . 1 Kinetic . | . . Secondary . | . . Self-Inflicted Damage 4 | . 4 Shots . | . . Rammed 10 | . 10 Targets Rammed 10 | . 10 Kicked . | . . Crushed . | . . Highest Temperature 271 | . 271 Average Temperature 152 | . 152 Received Heat Transfer 576 | . 576 Siege Activations . | . . Robots Corrupted . | . . Combat Hostiles . | . . Parts Fried . | . . Impact Corruptions . | . . Robots Melted . | . . Combat Hostiles . | . . Parts Melted . | . . Heat Transferred 125 | . 125 Parts Sabotaged . | . . Parts Stolen . | . . Parts Stripped . | . . Power Chain Reactions 1 | 1 . Missiles Intercepted . | . . Alert | -11 -10 ------- Run | Scr Mat Peak Influence 85 | 15 85 Average Influence 29 | 3 37 Maximum Alert Level . | . . Low Security (%) 100 | 100 100 Level 1 . | . . Level 2 . | . . Level 3 . | . . Level 4 . | . . Level 5 . | . . High Security . | . . Max Security . | . . Squads Dispatched 1 | . 1 Investigation . | . . Extermination . | . . Reinforcement 1 | . 1 Assault . | . . Garrison . | . . Intercept . | . . Construction Impeded . | . . Haulers Reinforced . | . . Stealth | -11 -10 --------- Run | Scr Mat Distress Signals 2 | . 2 Communications Jammed . | . . Distress Signals . | . . Times Spotted 9 | . 9 Peak Tracking Total 7 | . 7 Tactical Retreats . | . . Traps | -11 -10 ------- Run | Scr Mat Traps Triggered . | . . Indirectly . | . . Trap Hack Attempts . | . . Triggered . | . . Disarmed . | . . Reprogrammed . | . . Reused . | . . Traps Extracted . | . . Installed . | . . Triggered . | . . Machines | -11 -10 ---------- Run | Scr Mat Machines Disabled . | . . Max in Single Turn . | . . Machines Sabotaged . | . . Garrisons Compromised . | . . Overloaded Fab Kills . | . . Fab Network Shutdowns . | . . Hacking | -11 -10 --------- Run | Scr Mat Machines Accessed 2 | . 2 Terminals 2 | . 2 Fabricators . | . . Repair Stations . | . . Recycling Units . | . . Scanalyzers . | . . Garrison Access . | . . Total Hacks 7 | . 7 Successful 2 | . 2 Failed 5 | . 5 Catastrophic . | . . Database Lockouts . | . . Manual 5 | . 5 Terminals 7 | . 7 Fabricators . | . . Repair Stations . | . . Recycling Units . | . . Scanalyzers . | . . Garrison Access . | . . Terminal Hacks . | . . Fabricator Hacks . | . . Repair Station Hacks . | . . Recycling Unit Hacks . | . . Scanalyzer . | . . Garrison Access Hacks . | . . Unauthorized Hacks 2 | . 2 Terminals 2 | . 2 Track 1 | . 1 Botnet 1 | . 1 Fabricators . | . . Repair Stations . | . . Recycling Units . | . . Scanalyzers . | . . Garrison Access . | . . Data Cores Recovered . | . . Used . | . . Hacking Detections 2 | . 2 Full Trace Events . | . . Feedback Events . | . . Feedback Blocked . | . . Robot Schematics Acquired . | . . Robots Built . | . . Matter . | . . Time . | . . Total Robot Build Rating . | . . Part Schematics Acquired . | . . Parts Built . | . . Matter . | . . Time . | . . Total Part Build Rating . | . . Parts Repaired . | . . Time . | . . Parts Recycled . | . . Recycled Matter . | . . Retrieved Matter . | . . Retrieved Components . | . . Parts Scanalyzed . | . . Part Schematics Acquired . | . . Parts Damaged . | . . Bothacking | -11 -10 ------------ Run | Scr Mat Used RIF Installer . | . . Robots Hacked . | . . Non-combat . | . . Combat . | . . Robot Hacks Applied . | . . Relay Couplers Released . | . . Robots Rewired . | . . Allies Hacked . | . . Hacks Repelled . | . . Allies | -11 -10 -------- Run | Scr Mat Total Allies . | . . Largest Group . | . . Highest-Rated Group . | . . Highest-Rated Ally . | . . Total Orders . | . . Ally Attacks . | . . Total Damage . | . . Kills . | . . Allies Corrupted . | . . Allies Melted . | . . Intel | -11 -10 ------- Run | Scr Mat Robot Analysis Total . | . . Derelict Logs Recovered . | . . Drone Launches . | . . Drone Recoveries . | . . Exploration | -11 -10 ------------- Run | Scr Mat Turns Passed 349 | 89 260 Spaces Moved 193 | 51 142 Core 7 | 4 3 Treads . | . . Legs 185 | 47 138 Wheels . | . . Hover 1 | . 1 Flight . | . . Fastest Speed 50 | 50 60 Average Speed 117 | 114 119 Slowest Speed 120 | 120 120 Overloaded Moves . | . . Propulsion Burnouts . | . . Robots Hopped . | . . Cave-ins Triggered . | . . Exploration Rate (%) 16 | 4 29 Regions Visited 1 Branch Regions . Pre-discovered Areas . | . . Known Exits Taken . | . . Unknown Exits Taken 1 | 1 . Scrap Searched . | . . Spaces Dug . | . . Terrain Destroyed 6 | 6 . Melee . | . . Projectile . | . . AOE 6 | 6 . Actions | -11 -10 --------- Run | Scr Mat Total 267 | 67 200 Wait 18 | . 18 Move 192 | 50 142 Hop . | . . Pick Up 8 | 4 4 Fast Attach 11 | 7 4 Attach 3 | . 3 Detach . | . . Swap 2 | 1 1 Drop 3 | . 3 Fire 20 | 5 15 Melee . | . . Ram . | . . Kick 10 | . 10 Crush . | . . Escape Stasis . | . . Rewire . | . . Trap . | . . Miscellaneous . | . . Route ------- -11/Scrapyard -10/Materials (discovered 1 exit: [*Mat]) History --------- Turn | Location | Event 5 | -11/Scrapyard | Discovered new exit (range 15) 90 | -11/Scrapyard | Entered Materials 306 | -10/Materials | Core integrity fell below 50% 328 | -10/Materials | Core integrity fell below 20% 338 | -10/Materials | Build established: Mutant 340 | -10/Materials | Discovered new exit (range 16) 350 | -10/Materials | Destroyed by G-34 Mercenary with Small Laser Last Messages --------------- 00318_ Destabilizing: Short circuit. 00319_ Acquired 26 matter. 00319_ Slammed into G-47 Trooper. 00321_ G-47 Trooper knocked back. 00322_ Slammed into G-47 Trooper. 00323_ K-01 Serf collects debris. 00323_ Imp. Ion Engine destroyed. 00324_ Slammed into G-47 Trooper. 00326_ K-01 Serf collects debris. 00326_ Slammed into G-47 Trooper. 00326_ Destabilizing: System corrupted (+2). 00327_ Slammed into G-47 Trooper. 00329_ K-01 Serf cleans the Pressure Siphon. 00330_ Slammed into G-47 Trooper. 00331_ Acquired 4 matter. 00333_ Broken Aluminum Leg destroyed. 00340_ EXIT=FOUND 00343_ U-05 Engineer lays Concrete. 00345_ Aluminum Leg destroyed. 00347_ Acquired Sml. Storage Unit. Map ----- +----------------------------------------------------+ | """ #????????????""" ??????????????????????????? | | """ #????????????""" ??????????????????????????? | | """ #???????????? ?#?????????????????????????? | | #????????????? #?"""?????????????????????? | | +#####????????????? ??"""?????????????????????? | | #################/### ??????????????????????? | | # "???????????????????????? | | ! + ????????????????????????? | | """ """ """ """ #?????????????????????????? | | """ """ """ %""" #?????????????????????????? | | """ """ """% """ ######????????????????????? | | """ """ ####?????????????????? | | % + ????????????????? | | % #????????????????????? | | ######## ###""T""#### g #????????????????????? | | #! # #?#"""""#??#gg #????????????????????? | | # ! # #?#######??# #????????????????????? | | + # #??????????# #????????????????????? | | # # #???????#### #????????????????????? | | # !! # #??????##!! #????????????????????? | | # !! # #??#???#! #????????????????????? | | # !! # #??????#! #????????????????????? | | ######## #??????#! #????????????????????? | | #?????## ##?????#! u#????????????????????? | | ####### #?????##! #????????????????????? | | #??????####@ #????????????????????? | | T #?????????# #????????????????????? | | #?????????# #????????????????????? | | ####### #?????????# #????????????????????? | | ######## ##?????????# #????????????????????? | | + # #??????????# #????????????????????? | | # + #??????????# #????????????????????? | | # " " # #??????????+ +????????????????????? | | ### "T" # #??????????# #????????????????????? | | ??# """ #####??????????? < #????????????????????? | | ??# #??????? ??????? #????????????????????? | | ??########???????????????####????????????????????? | | ?????????????????????????????????????????????????? | | ???????#?????????????????????????????????????????? | | ?????????????????????????????????????????????????? | | ?????????????????????????????????????????????????? | | ?????????#???????????????????????????????????????? | | | | | | | | | | | | | | | | | +----------------------------------------------------+ Best States ------------- Heat Dissipation 25 Energy Generation 12 Energy Capacity 265 Matter Stores 300 Matter Capacity 300 Sight Range 16 Robot Scan Range 13 Terrain Scan Range 16 Terrain Scan Density 10 Evasion (%) 40 Item Schematics ----------------- None Robot Schematics ------------------ None Fabricated ------------ Nothing Alien Tech Used ----------------- None Achievements -------------- None Challenges ------------ None Game ------ Seed GravmagEnergyMaul Manual? 0 Play Time 00:06:39 Cumulative 38.5 hours Start 2020.05.14 @ 09:13:53 End 2020.05.14 @ 09:17:48 Sessions 1 Manual Loads 0 Difficulty Rogue Special Mode None Game No. 16 Rogue 16 Adventurer 0 Explorer 0 Win Type - Total 3 Types 2/0/0/1/0/0/0 Lore% 45 Gallery% 47 Achievement% 42 Wizard Run 0 Options --------- ASCII 1 Keyboard 0 Movement Numpad Keybinds 0 Fullscreen 1 Font 18/SmallcapsGlow Map View 76x50 Tactical HUD 1 Map Filters NONE Filters NONE Steam 1 RUN: 4c2fcb5f-b907-4505-b793-fe5ccaaedebd